[Event "AUT-ch U16 Boys 2022"]
[Site "Sankt Veit an der Glan"]
[Date "2022.04.13"]
[Round "6.9"]
[White "Leitner, Thomas"]
[Black "Soldo, Dario"]
[Result "1-0"]
[ECO "A60"]
[WhiteElo "1734"]
[BlackElo "1547"]
[Annotator "NA RC"]
[PlyCount "63"]
[EventDate "2022.04.11"]
[EventType "swiss"]
[EventCountry "AUT"]
[SourceTitle "playchess.com"]
[Source "ChessBase"]
[SourceQuality "1"]
[TimeControl "5400+30"]

1. d4 {[%emt 0:00:03]} Nf6 {[%emt 0:00:05]} 2. c4 {[%emt 0:00:07]} c5 {[%emt 0:00:04]} 3. d5 {[%emt 0:00:13]} e6 {[%emt 0:00:07]} 4. Nc3 {[%emt 0:00:08]} exd5 {[%emt 0:00:06]} 5. cxd5 {[%emt 0:00:11]} d6 {[%emt 0:00:03]} 6. Bf4 {[%emt 0:00:16]} a6 {[%emt 0:00:29]} 7. a4 {[%emt 0:00:12]} g6 {[%emt 0:00:32]} 8. Nf3 {[%emt 0:00:25]} Bg7 {[%emt 0:00:16]} 9. h3 {[%emt 0:00:36]} O-O {[%emt 0:00:24]} 10. e3 {[%emt 0:00:53]} Re8 {[%emt 0:07:28]} 11. Nd2 {[%emt 0:02:57]} Qc7 {[%emt 0:05:43]} 12. Be2 {[%emt 0:02:41]} Nbd7 {[%emt 0:00:31]} 13. a5 {[%emt 0:01:54]} Ne5 {[%emt 0:03:45]} 14. O-O {[%emt 0:01:41]} Nfd7 {[%emt 0:05:33]} 15. Bh2 {[%emt 0:02:11]} f5 {[%emt 0:01:23]} 16. Qb3 {[%emt 0:01:19]} Rb8 {[%emt 0:00:45]} 17. Qc2 {[%emt 0:07:35]} Nf8 {[%emt 0:07:25]} 18. Rfe1 {[%emt 0:10:48]} Bd7 {[%emt 0:06:50]} 19. Nc4 {[%emt 0:04:55]} Nxc4 {[%emt 0:00:48]} 20. Bxc4 {[%emt 0:00:11]} Bxc3 {[%emt 0:04:50]} 21. Qxc3 {[%emt 0:04:23]} Bb5 {[%emt 0:00:09]} 22. Ba2 {[%emt 0:01:35]} Rbd8 {[%emt 0:02:00]} 23. b4 {[%emt 0:03:02]} Nd7 {[%emt 0:04:34]} 24. Rac1 {[%emt 0:02:07]} Rc8 {[%emt 0:03:09]} 25. Red1 {[%emt 0:04:11]} Kf7 {[%emt 0:07:59]} 26. Bf4 {[%emt 0:03:42]} c4 {[%emt 0:02:49]} 27. Bh6 {[%emt 0:02:44]} Rg8 {[%emt 0:00:25]} 28. Bg5 {[%emt 0:01:47]} Rge8 {[%emt 0:05:45]} 29. Rd4 {[%emt 0:02:26]} Ne5 {[%emt 0:00:53]} 30. Bh6 {[%emt 0:10:02]} Qe7 {[%emt 0:01:46]} 31. f4 {[%emt 0:04:31]} Nd3 {[%emt 0:00:37]} 32. Rxd3 {[%emt 0:00:26]} 1-0

[Event "AUT-ch U16 Boys 2022"]
[Site "Sankt Veit an der Glan"]
[Date "2022.04.13"]
[Round "6.11"]
[White "Stadlinger, Lukas"]
[Black "Schilcher, Elias"]
[Result "1/2-1/2"]
[ECO "C44"]
[WhiteElo "1718"]
[BlackElo "1445"]
[Annotator "NA RC"]
[PlyCount "91"]
[EventDate "2022.04.11"]
[EventType "swiss"]
[EventCountry "AUT"]
[SourceTitle "playchess.com"]
[Source "ChessBase"]
[SourceQuality "1"]
[TimeControl "5400+30"]

1. e4 {[%emt 0:00:28]} e5 {[%emt 0:00:09]} 2. Nf3 {[%emt 0:00:39]} Nc6 {[%emt 0:00:06]} 3. c3 {[%emt 0:01:34]} Nf6 {[%emt 0:00:12]} 4. d4 {[%emt 0:02:27]} exd4 {[%emt 0:00:08]} 5. cxd4 {[%emt 0:01:30]} Bb4+ {[%emt 0:01:39]} 6. Nc3 {[%emt 0:02:08]} Nxe4 {[%emt 0:03:59]} 7. Qb3 {[%emt 0:19:36]} Qe7 {[%emt 0:04:05]} 8. Be3 {[%emt 0:04:51]} Na5 {[%emt 0:17:04]} 9. Qc2 {[%emt 0:08:03]} d5 {[%emt 0:04:35]} 10. Bd3 {[%emt 0:07:38]} O-O {[%emt 0:09:35]} 11. O-O {[%emt 0:07:14]} Bxc3 {[%emt 0:07:27]} 12. bxc3 {[%emt 0:02:51]} Bg4 {[%emt 0:02:16]} 13. Ne5 {[%emt 0:07:15]} Bc8 {[%emt 0:10:03]} 14. Bxe4 {[%emt 0:06:59]} dxe4 {[%emt 0:00:37]} 15. Qxe4 {[%emt 0:01:02]} f6 {[%emt 0:03:27]} 16. Qd5+ {[%emt 0:01:21]} Qe6 {[%emt 0:03:33]} 17. Qxa5 {[%emt 0:03:18]} fxe5 {[%emt 0:02:48]} 18. Qxc7 {[%emt 0:02:45]} exd4 {[%emt 0:01:39]} 19. Bxd4 {[%emt 0:03:01]} Rf7 {[%emt 0:03:17]} 20. Qd8+ {[%emt 0:03:19]} Rf8 {[%emt 0:00:15]} 21. Qg5 {[%emt 0:00:51]} Qg4 {[%emt 0:02:11]} 22. Qxg4 {[%emt 0:01:22]} Bxg4 {[%emt 0:00:07]} 23. h3 {[%emt 0:00:04]} Bf5 {[%emt 0:02:41]} 24. Rfe1 {[%emt 0:01:24]} b6 {[%emt 0:01:30]} 25. Re7 {[%emt 0:01:00]} Rf7 {[%emt 0:00:44]} 26. Rae1 {[%emt 0:01:41]} Kf8 {[%emt 0:00:53]} 27. Rxf7+ {[%emt 0:01:34]} Kxf7 {[%emt 0:00:02]} 28. Re5 {[%emt 0:00:24]} g6 {[%emt 0:02:42]} 29. f4 {[%emt 0:01:17]} Re8 {[%emt 0:01:16]} 30. Kf2 {[%emt 0:01:55]} h5 {[%emt 0:01:23]} 31. Kf3 {[%emt 0:01:36]} Rxe5 {[%emt 0:01:39]} 32. fxe5 {[%emt 0:00:10]} Ke6 {[%emt 0:02:16]} 33. h4 {[%emt 0:00:55]} Kd5 {[%emt 0:02:16]} 34. Ke3 {[%emt 0:00:13]} Be4 {[%emt 0:03:11]} 35. e6 {[%emt 0:00:53]} Bf5 {[%emt 0:00:09]} 36. e7 {[%emt 0:00:16]} Bd7 {[%emt 0:00:11]} 37. Bf6 {[%emt 0:00:22]} Ke6 {[%emt 0:00:31]} 38. Bg5 {[%emt 0:00:01]} Ke5 {[%emt 0:00:48]} 39. g3 {[%emt 0:00:40]} b5 {[%emt 0:00:46]} 40. Kd3 {[%emt 0:01:26]} Kd5 {[%emt 0:01:23]} 41. Bf4 {[%emt 0:00:48]} a6 {[%emt 0:02:31]} 42. Ke3 {[%emt 0:00:24]} Ke6 {[%emt 0:00:44]} 43. Bg5 {[%emt 0:00:07]} Ke5 {[%emt 0:00:33]} 44. Kd2 {[%emt 0:00:39]} Kd5 {[%emt 0:01:24]} 45. Kd3 {[%emt 0:00:24]} Be8 {[%emt 0:00:41]} 46. Bf6 1/2-1/2